Cogmind - Beta 11.1 @@@ ROGUE MODE // 2022.07.08 @ 06:06:58 Player: Calazard Result: Destroyed by S-10 Pest with Light Assault Rifle Performance ------------- Evolutions (0) 0 Regions Visited (2) 400 Robots Destroyed (6) 30 Value Destroyed (169) 169 Prototype IDs (2) 40 Alien Tech Used (0) 0 Bonus (0) 0 TOTAL SCORE: 639 Bonus ------- None Cogmind --------- Core Integrity 0/250 Matter 264/300 Energy 95/100 System Corruption 2% Temperature Cool (0) Movement Core (50) Location -10/Mines Parts ------- > --- POWER (1) -------- (None) > --- PROPULSION (2) --- (None) > --- UTILITY (2) ------ (None) > --- WEAPON (2) ------- (None) > --- INVENTORY (5) ---- Aluminum Leg Small Laser Mining Claw Peak State ------------ > --- POWER ------------ Ion Engine > --- PROPULSION ------- Aluminum Leg Aluminum Leg > --- UTILITY ---------- Small Storage Unit Medium Storage Unit > --- WEAPON ----------- Particle Gun Light Assault Rifle > --- INVENTORY -------- Aluminum Leg EM Pulse Gun Small Laser Mining Claw [Rating: 8] Favorites ----------- Power Ion Engine Engine Ion Engine Propulsion Aluminum Leg Leg Aluminum Leg Wheel Wheel Utility Small Storage Unit Device Sensor Array Storage Small Storage Unit Processor Signal Interpreter Protection Light Armor Plating Weapon Light Assault Rifle Energy Gun Particle Gun Ballistic Gun Light Assault Rifle Build | -11 -10 -10 ------- Run | Scr Mat Min Slots Evolved . | . . . Power . | . . . Propulsion . | . . . Utility . | . . . Weapon . | . . . Parts Attached 19 | 6 10 3 Power 3 | 1 2 . Engine 3 | 1 2 . Core . | . . . Reactor . | . . . Propulsion 7 | 2 3 2 Treads . | . . . Leg 5 | . 3 2 Wheel 2 | 2 . . Hover . | . . . Flight . | . . . Utility 5 | 1 4 . Device 1 | . 1 . Storage 2 | 1 1 . Processor 1 | . 1 . Hackware . | . . . Protection 1 | . 1 . Artifact . | . . . Weapon 4 | 2 1 1 Energy Gun 3 | 1 1 1 Energy Cannon . | . . . Ballistic Gun 1 | 1 . . Ballistic Cannon . | . . . Launcher . | . . . Special Weapon . | . . . Impact Weapon . | . . . Slashing Weapon . | . . . Piercing Weapon . | . . . Special Melee Weapon . | . . . Unidentified Prototypes . | . . . Parts Lost 6 | . 5 1 Power 3 | . 2 1 Propulsion 1 | . 1 . Utility 1 | . 1 . Weapon 1 | . 1 . Highest Loss Streak 2 | . 2 1 To Critical Strikes . | . . . Average Slot Usage (%) 89 | . 88 90 Engine 13 | . 13 12 Leg 22 | . 21 28 Wheel 3 | . 4 . Storage 14 | . 14 14 Processor 5 | . 3 14 Protection 1 | . 2 . Energy Gun 15 | . 14 20 Ballistic Gun 10 | . 13 . Naked Turns 6 | . . 6 Heaviest Build 19 | 12 19 18 Greatest Support 26 | 26 26 20 Greatest Overweight (x) 1 | 1 1 . Average Overweight (x) . | . . . Largest Inventory Capacity 10 | 8 10 10 Average Capacity 8 | 7 8 9 Most Carried 6 | 5 6 6 Average Carried 3 | 2 4 3 Final Capacity 10 | 8 10 5 Final Carried 6 | 4 6 3 Class Distribution -------------------- 100% | Mutant Dominant Class ---------------- Mutant | -10/Materials Mutant | -10/Mines Resources | -11 -10 -10 ----------- Run | Scr Mat Min Matter Collected 340 | 204 136 . Remotely . | . . . Salvage Created 220 | . 189 31 Parts 13 | . 7 6 Haulers Intercepted . | . . . Recyclers Shooed . | . . . Parts Field Recycled . | . . . Retrieved Matter . | . . . Parts Self-Destructed . | . . . Prevented . | . . . Kills | -11 -10 -10 ------- Run | Scr Mat Min Combat Hostiles Destroyed 6 | . 4 2 Guns 6 | . 4 2 Classes Destroyed 2 | . 1 1 Swarmer 2 | . . 2 Grunt 4 | . 4 . Best Kill Streak 2 | . 2 2 Combat Bots Only 2 | . 2 2 Max Kills in Single Turn 1 | . 1 1 Gunslinging . | . . . Exploded . | . . . Melee . | . . . Uniques/NPCs Destroyed . | . . . Combat | -11 -10 -10 -------- Run | Scr Mat Min Damage Taken 1011 | . 740 271 Core 256 | . 127 129 Absorbed by Shields . | . . . Regen/Repaired (Parts) 57 | . 57 . Core Remaining (%) 100 | 100 . . Volleys Fired 24 | . 17 7 Largest 2 | . 2 2 Hottest 105 | . 60 105 Shots Fired 47 | . 34 13 Gun 47 | . 34 13 Cannon . | . . . Launcher . | . . . Special . | . . . Kinetic 17 | . 17 . Thermal 23 | . 17 6 Explosive . | . . . Electromagnetic 7 | . . 7 Robot Hit Streak 14 | . 14 1 Robot Miss Streak 4 | . 2 4 Penetration Max . | . . . Secondary Targets 1 | . . 1 Max Gunslinging Chain 1 | . . 1 Shots Hit Robots 30 | . 26 4 Core Hits 13 | . 10 3 Critical Kills . | . . . Critical Parts Destroyed . | . . . Critical Strikes . | . . . Melee Attacks . | . . . Impact . | . . . Slashing . | . . . Piercing . | . . . Sneak Attacks . | . . . Combat Hostiles . | . . . Follow-up Attacks . | . . . Damage Inflicted 302 | 1 245 56 Guns 295 | . 245 50 Cannons . | . . . Explosions . | . . . Melee . | . . . Ramming 7 | 1 . 6 Kinetic 92 | . 92 . Thermal 182 | . 153 29 Explosive . | . . . Electromagnetic 21 | . . 21 Impact . | . . . Slashing . | . . . Piercing . | . . . Highest Corruption 2 | . 2 2 Average Corruption 2 | . 2 2 Corruption Purged . | . . . Corruption Blocked . | . . . Effects 7 | . 4 3 Message Errors 2 | . . 2 Matter Fused 1 | . 1 . Energy Discharges 3 | . 2 1 Alerts 1 | . 1 . Overload Shots . | . . . Overflow Damage . | . . . Projectiles . | . . . Explosions . | . . . Melee . | . . . Knockbacks . | . . . Impact . | . . . Kinetic . | . . . Secondary . | . . . Self-Inflicted Damage . | . . . Shots . | . . . Rammed 1 | 1 . . Targets Rammed 3 | 1 . 2 Kicked 2 | . . 2 Crushed . | . . . Highest Temperature 169 | . 169 135 Average Temperature 79 | . 88 64 Received Heat Transfer 471 | . 417 54 Siege Activations . | . . . Robots Corrupted . | . . . Combat Hostiles . | . . . Parts Fried . | . . . Impact Corruptions . | . . . Robots Melted . | . . . Combat Hostiles . | . . . Parts Melted . | . . . Heat Transferred 424 | . 350 74 Parts Sabotaged . | . . . Parts Stolen . | . . . Parts Stripped . | . . . Power Chain Reactions . | . . . Missiles Intercepted . | . . . Alert | -11 -10 -10 ------- Run | Scr Mat Min Peak Influence 174 | . 174 103 Initial 23 | . . 23 Average 43 | . 46 49 Maximum Alert Level . | . . . Low Security (%) 100 | 100 100 100 Level 1 . | . . . Level 2 . | . . . Level 3 . | . . . Level 4 . | . . . Level 5 . | . . . High Security . | . . . Max Security . | . . . Squads Dispatched 2 | . 2 . Investigation 1 | . 1 . Extermination . | . . . Reinforcement 1 | . 1 . Assault . | . . . Garrison . | . . . Intercept . | . . . Searches Triggered . | . . . Construction Impeded . | . . . Haulers Reinforced . | . . . Active Scanning Responses . | . . . Cargo Convoy Interrupts . | . . . Stealth | -11 -10 -10 --------- Run | Scr Mat Min Distress Signals 1 | . 1 . Communications Jammed . | . . . Distress Signals . | . . . Times Spotted 23 | . 17 6 Peak Tracking Total 6 | . 6 5 Tactical Retreats 5 | . 4 1 Traps | -11 -10 -10 ------- Run | Scr Mat Min Traps Triggered 3 | . 3 . Indirectly . | . . . Trap Hack Attempts . | . . . Triggered . | . . . Disarmed . | . . . Reprogrammed 6 | . 6 . Reused 4 | . 4 . Traps Extracted . | . . . Installed . | . . . Triggered 4 | . 4 . Machines | -11 -10 -10 ---------- Run | Scr Mat Min Machines Disabled . | . . . Max in Single Turn . | . . . Machines Sabotaged . | . . . Garrisons Compromised . | . . . Overloaded Fab Kills . | . . . Hacking | -11 -10 -10 --------- Run | Scr Mat Min Machines Accessed 6 | . 6 . Terminals 5 | . 5 . Fabricators . | . . . Repair Stations 1 | . 1 . Recycling Units . | . . . Scanalyzers . | . . . Garrison Access . | . . . Total Hacks 13 | . 13 . Successful 6 | . 6 . Failed 7 | . 7 . Catastrophic 2 | . 2 . Database Lockouts . | . . . Manual 4 | . 4 . Terminals 10 | . 10 . Fabricators . | . . . Repair Stations 3 | . 3 . Recycling Units . | . . . Scanalyzers . | . . . Garrison Access . | . . . Terminal Hacks 4 | . 4 . Prototype ID Bank 1 | . 1 . Reprogram Traps 1 | . 1 . Registered Components 1 | . 1 . Zone Layout 1 | . 1 . Fabricator Hacks . | . . . Repair Station Hacks 2 | . 2 . Scan Component 1 | . 1 . Repair 1 | . 1 . Recycling Unit Hacks . | . . . Scanalyzer . | . . . Garrison Access Hacks . | . . . Unauthorized Hacks . | . . . Terminals . | . . . Fabricators . | . . . Repair Stations . | . . . Recycling Units . | . . . Scanalyzers . | . . . Garrison Access . | . . . Data Cores Recovered . | . . . Used . | . . . Hacking Detections 5 | . 5 . Full Trace Events . | . . . Feedback Events . | . . . Feedback Blocked . | . . . Robot Schematics Acquired . | . . . Robots Built . | . . . Authchips . | . . . Time . | . . . Total Robot Build Rating . | . . . Part Schematics Acquired . | . . . Parts Built . | . . . Authchips . | . . . Time . | . . . Total Part Build Rating . | . . . Parts Repaired 1 | . 1 . Time 26 | . 26 . Parts Recycled . | . . . Recycled Matter . | . . . Retrieved Matter . | . . . Retrieved Components . | . . . Parts Scanalyzed . | . . . Part Schematics Acquired . | . . . Parts Damaged . | . . . Bothacking | -11 -10 -10 ------------ Run | Scr Mat Min Used RIF Installer . | . . . Robots Hacked . | . . . Non-combat . | . . . Combat . | . . . Robot Hacks Applied . | . . . Relay Couplers Released . | . . . Fabnet Peak Effective % . | . . . Robots Rewired . | . . . Allies Hacked . | . . . Hacks Repelled . | . . . Allies | -11 -10 -10 -------- Run | Scr Mat Min Total Allies . | . . . Largest Group . | . . . Highest-Rated Group . | . . . Highest-Rated Ally . | . . . Total Orders . | . . . Ally Attacks . | . . . Total Damage . | . . . Kills . | . . . Allies Corrupted . | . . . Allies Melted . | . . . Intel | -11 -10 -10 ------- Run | Scr Mat Min Robot Analysis Total . | . . . Derelict Logs Recovered . | . . . Drone Launches . | . . . Drone Recoveries . | . . . Exploration | -11 -10 -10 ------------- Run | Scr Mat Min Turns Passed 696 | 53 526 117 Spaces Moved 507 | 44 381 82 Core 20 | 7 . 13 Treads . | . . . Legs 368 | . 299 69 Wheels 119 | 37 82 . Hover . | . . . Flight . | . . . Fastest Speed 50 | 50 90 50 Average Speed 110 | 87 113 108 Slowest Speed 120 | 100 120 120 Overloaded Moves . | . . . Propulsion Burnouts . | . . . Robots Hopped . | . . . Cave-ins Triggered . | . . . Exploration Rate (%) 31 | 3 58 33 Regions Visited 2 Branch Regions 1 Pre-discovered Areas . | . . . Known Exits Taken 1 | . 1 . Unknown Exits Taken 1 | 1 . . Scrap Searched . | . . . Spaces Dug . | . . . Terrain Destroyed . | . . . Melee . | . . . Projectile . | . . . AOE . | . . . Terrain Rammed . | . . . Walls Destroyed . | . . . Machines Disabled . | . . . Actions | -11 -10 -10 --------- Run | Scr Mat Min Total 593 | 55 442 96 Wait 26 | . 26 . Move 506 | 44 380 82 Hop . | . . . Pick Up 11 | 5 6 . Fast Attach 9 | 5 4 . Attach 6 | 1 4 1 Detach . | . . . Swap 4 | . 2 2 Drop 5 | . 3 2 Fire 24 | . 17 7 Melee . | . . . Ram . | . . . Kick 2 | . . 2 Crush . | . . . Escape Stasis . | . . . Rewire . | . . . Trap . | . . . Miscellaneous . | . . . Route ------- -11/Scrapyard -10/Materials (discovered 2 exits: *Mat / *Min) -10/Mines History --------- Turn | Location | Event 16 | -11/Scrapyard | Discovered new exit (range 16) 54 | -11/Scrapyard | Entered Materials 252 | -10/Materials | Repaired Aluminum Leg 258 | -10/Materials | Discovered new exit (range 16) 312 | -10/Materials | Build established: Mutant 387 | -10/Materials | Discovered new exit (range 15) 455 | -10/Materials | Identified exit to Mines 516 | -10/Materials | Identified exit to Materials 572 | -10/Materials | Core integrity fell below 50% 580 | -10/Materials | Entered Mines 691 | -10/Mines | Released all parts (6) 692 | -10/Mines | Core integrity fell below 20% 697 | -10/Mines | Destroyed by S-10 Pest with Light Assault Rifle Last Messages --------------- 00601_ K-01 Serf collects debris. 00602_ K-01 Serf cleans the Seismic Survey Station. 00605_ K-01 Serf collects debris. 00610_ K-01 Serf cleans the Seismic Survey Station. 00625_ GKA ZZU:FMEWP7FO7/K5XPA 00630_ K-01 Serf collects debris. 00648_ S-10 Pest destroyed. 00649_ K-01 Serf collects debris. 00654_ S-10 Pest destroyed. 00654_ Switching to secondary target: S-10 Pest. 00662_ K-01 Serf collects debris. 00669_ #L69LEM>ZZS:HL6EDMJRAVMHBLWV6DR|OB,%R%V 00670_ K-01 Serf collects debris. 00674_ Kicked K-01 Serf out of the way. 00682_ Lgt. Ion Engine destroyed. 00691_ Released EM Pulse Gun. 00691_ Released Particle Gun. 00691_ Released Med. Storage Unit. 00691_ Released Signal Interpreter. 00691_ Released Aluminum Leg. Map ----- +----------------------------------------------------+ | ?????????????????????????????????????????????????? | | ?????????????????????????????????????????????????? | | ?????????????????????????????????????????????????? | | ?????????????????????????????????????????????????? | | ?????????????????????????????????????????????????? | | ?????????????????????????????????????????????????? | | ?????????????????????????????????????????????????? | | ?????????????????????????????????????????????????? | | ?????????????????????????????????????????????????? | | ?#???#???????????????????????????????????????????? | | ??? ??????????????????? ??????????????????????? | | ???? ??????????????????? #?????????????????????? | | ???? ??????????????????? #?????????????????????? | | ???? ??????????????????? ##????????????????????? | | ???? ??????????????????? ?????????????????????? | | ???# #????????#####????? #?????????????????????? | | #???# ??####?## ##???? #?????????????????????? | | ????# #?## ### ##??# #?????????????????????? | | ????# #?# #### #?????????????????????? | | ????# #??# = ##????????????????????? | | ????# #?## =[! #????????????????????? | | ????# ### [ s #????????????????????? | | ????# #????????????????????? | | ????# ## ## ######???????????????? | | #???# ### ##### ## r #???????????????? | | ##??# #?# #???####### @ ### #???????????????? | | #??# #### #????????#### ##???????????????????? | | #?## ## #????????????###????????????????????? | | #?# ## #???????????????????????????????????? | | ##?# #?##???????????????????????????????????? | | #### #??????????????????????????????????????? | | ## #??????????????????????????????????????? | | #??????????????????????????????????????? | | #??????????????????????????????????????? | | ##??????????????????????????????????????? | | #???????????????????????????????????????? | | ### #???????????????????????????????????????? | | #?## #??????????????????????????????????????? | | #??# == #??????????????????????????????????????? | | #??##%== ##??????????????????????????????????????? | | #???##%[ #???????????????????????????????????????? | | #?????#* #???????????????????????????????????????? | | #?????? #???????????????????????????????????????? | | #?????? #???????????????????????????????????????? | | #?????? #???????????????????????????????????????? | | #??????? #???????????????????????????????????????? | | #????????????????????????????????????????????????? | | #????????????????????????????????????????????????? | | #????????????????????????????????????????????????? | | #????????????????????????????????????????????????? | +----------------------------------------------------+ Best States ------------- Heat Dissipation 25 Energy Generation 10 Energy Capacity 250 Matter Stores 300 Matter Capacity 300 Sight Range 16 Robot Scan Range 14 Terrain Scan Density 10 Armor Coverage 150 Evasion (%) 55 Item Schematics ----------------- None Robot Schematics ------------------ None Fabricated ------------ Nothing Alien Tech Used ----------------- None Achievements -------------- None Challenges ------------ None Game ------ Seed WaveReflectiveNanosword Manual? 0 Play Time 00:11:33 Cumulative 11.3 hours Start 2022.07.07 @ 09:54:09 End 2022.07.08 @ 06:06:58 Sessions 3 Manual Loads 0 Difficulty Rogue Special Mode None Game No. 14 Rogue 14 Adventurer 0 Explorer 0 Win Type - Total 0 Types 0/0/0/0/0/0/0/0/0 Lore% 18 Gallery% 20 Achievement% 16 Wizard Run 0 Options --------- ASCII 0 Keyboard 0 Movement Numpad Keybinds 0 Fullscreen 0 Font 16/Terminus Map View 76x50 Tactical HUD 1 Map Filters NONE Filters NONE Steam 1 RUN: 1e7c7ff0-cc07-452d-a3d2-feceb1229d75